[Event "FRA-ch Youth U18 2018"]
[Site "Agen"]
[Date "2018.04.19"]
[Round "6"]
[White "Heliot, Xabi"]
[Black "Lafortune, Emerick"]
[Result "1/2-1/2"]
[ECO "A04"]
[WhiteElo "2160"]
[BlackElo "2112"]
[Annotator "NA"]
[PlyCount "91"]
[EventDate "2018.??.??"]
[EventType "swiss"]
[EventCountry "FRA"]
[SourceTitle "playchess.com"]
[Source "ChessBase"]
[SourceQuality "1"]
[TimeControl "5400+30"]

1. Nf3 {[%emt 0:00:00]} c5 {[%emt 0:02:22]} 2. c4 {[%emt 0:00:00]} Nc6 {[%emt 0:00:10]} 3. Nc3 {[%emt 0:00:12]} e5 {[%emt 0:00:09]} 4. g3 {[%emt 0:02:46]} g6 {[%emt 0:00:14]} 5. Bg2 {[%emt 0:00:08]} Bg7 {[%emt 0:00:07]} 6. O-O {[%emt 0:04:20]} Nge7 {[%emt 0:00:10]} 7. Rb1 {[%emt 0:03:01]} O-O {[%emt 0:02:48]} 8. a3 {[%emt 0:00:28]} a5 {[%emt 0:00:53]} 9. Ne1 {[%emt 0:07:20]} d6 {[%emt 0:01:48]} 10. Nc2 {[%emt 0:00:32]} Be6 {[%emt 0:00:44] LiveBook: 128 Games} 11. Ne3 {[%emt 0:02:04] A37: Symmetrical English vs ...g6: 4 Bg2 Bg7 5 Nf3} f5 {[%emt 0:05:59]} 12. d3 {[%emt 0:08:35]} Bf7 {[%emt 0:20:04]} 13. Ned5 {[%emt 0:02:29]} Nxd5 {[%emt 0:15:21]} 14. Nxd5 {[%emt 0:01:16] [#]} a4 $146 {[%emt 0:00:51]} ({Find the theoretical novelty and annotate with similar games:} 14... Rb8 15. Bd2 Kh8 16. b4 axb4 17. axb4 cxb4 18. Nxb4 Nxb4 19. Rxb4 {½-½ (31) Kryakvin,D (2539)-Shaposhnikov,E (2550) Voronezh 2007}) 15. e3 {[%emt 0:12:19]} Ne7 {[%emt 0:05:33]} 16. Nc3 {[%emt 0:04:34]} Qd7 {[%emt 0:03:24]} 17. b3 {[%emt 0:01:51]} axb3 {[%emt 0:04:04]} 18. Qxb3 {[%emt 0:01:30]} Rab8 {[%emt 0:00:27]} 19. Bd2 {[%emt 0:06:06]} b6 {[%emt 0:03:41]} 20. Qa4 {[%emt 0:04:23]} Rfd8 {[%emt 0:01:32]} 21. Qxd7 {[%emt 0:21:44]} Rxd7 22. e4 {[%emt 0:02:29]} h6 {[%emt 0:16:51]} 23. f3 {[%emt 0:01:21]} Nc6 {[%emt 0:06:43]} 24. Nb5 {[%emt 0:04:13]} Be6 {[%emt 0:04:40]} 25. Rb2 {[%emt 0:02:39]} Nd4 {[%emt 0:03:37]} 26. Nxd4 {[%emt 0:01:13]} exd4 {[%emt 0:00:06]} 27. Rfb1 {[%emt 0:01:39]} fxe4 {[%emt 0:00:19]} 28. fxe4 {[%emt 0:00:09]} Ra8 {[%emt 0:00:21]} 29. Rb3 {[%emt 0:03:16]} b5 {[%emt 0:00:56]} 30. Rxb5 {[%emt 0:00:08]} Rxa3 {[%emt 0:00:07]} 31. R5b3 {[%emt 0:00:42]} Rxb3 {[%emt 0:00:36]} 32. Rxb3 {[%emt 0:00:05]} g5 {[%emt 0:00:44]} 33. Rb8+ {[%emt 0:01:02]} Kf7 {[%emt 0:00:37]} 34. Bf3 {[%emt 0:00:41]} Kg6 {[%emt 0:00:40]} 35. Rb6 {[%emt 0:01:24]} Be5 {[%emt 0:00:26]} 36. Be2 {[%emt 0:00:28]} ({White should play} 36. Rb5 $15) 36... Ra7 {[%emt 0:00:26]} 37. Rb2 {[%emt 0:00:23]} Bh3 {[%emt 0:00:41]} 38. Kf2 {[%emt 0:00:45]} Ra1 {[%emt 0:00:18]} 39. Be1 {[%emt 0:00:10]} h5 {[%emt 0:00:38]} 40. Bf1 {[%emt 0:00:22]} Be6 {[%emt 0:00:27]} 41. Ke2 {[%emt 0:00:56]} Bg4+ {[%emt 0:00:38]} 42. Kf2 {[%emt 0:00:12]} h4 $17 {[%emt 0:00:15]} 43. Be2 {[%emt 0:00:55]} Be6 {[%emt 0:00:37]} 44. Bd2 {[%emt 0:00:29]} h3 {[%emt 0:00:39]} 45. Bf1 {[%emt 0:00:36]} Bg4 {[%emt 0:00:12]} 46. Be1 1/2-1/2

[Event "FRA-ch Youth U18 2018"]
[Site "Agen"]
[Date "2018.04.19"]
[Round "6"]
[White "Lomandong, Noela-Joyce"]
[Black "Rollot, Florence"]
[Result "1-0"]
[ECO "A15"]
[WhiteElo "2053"]
[BlackElo "2042"]
[Annotator "NA"]
[PlyCount "87"]
[EventDate "2018.??.??"]
[EventType "swiss"]
[EventCountry "FRA"]
[SourceTitle "playchess.com"]
[Source "ChessBase"]
[SourceQuality "1"]
[TimeControl "5400+30"]

1. c4 {[%emt 0:00:00]} Nf6 {[%emt 0:00:32]} 2. g3 {[%emt 0:00:00]} c5 {[%emt 0:00:07]} 3. Bg2 {[%emt 0:00:00]} g6 {[%emt 0:00:26]} 4. Nc3 {[%emt 0:00:00]} Nc6 {[%emt 0:00:15]} 5. e3 {[%emt 0:02:44]} Bg7 {[%emt 0:02:21]} 6. Nge2 {[%emt 0:01:27]} O-O {[%emt 0:03:26]} 7. d4 {[%emt 0:03:58]} cxd4 {[%emt 0:02:32]} 8. Nxd4 {[%emt 0:00:13]} Ne5 {[%emt 0:02:21]} 9. b3 {[%emt 0:01:21]} d6 {[%emt 0:02:23]} 10. h3 {[%emt 0:01:03]} a6 {[%emt 0:03:18]} 11. Bb2 {[%emt 0:03:07]} Rb8 {[%emt 0:08:33]} 12. O-O {[%emt 0:08:42]} Bd7 {[%emt 0:16:06]} 13. Qe2 {[%emt 0:15:05]} Qc8 {[%emt 0:07:13]} 14. Kh2 {[%emt 0:00:23]} Nc6 {[%emt 0:07:00]} 15. Rac1 {[%emt 0:16:05]} Nxd4 {[%emt 0:05:25]} 16. exd4 {[%emt 0:00:02]} e6 {[%emt 0:01:20]} 17. Rfd1 {[%emt 0:11:59]} Qc7 {[%emt 0:05:08]} 18. Na4 {[%emt 0:07:19]} Bxa4 {[%emt 0:05:47]} 19. bxa4 {[%emt 0:00:01]} Qa5 {[%emt 0:05:50]} 20. Qc2 {[%emt 0:02:21]} Bh6 {[%emt 0:03:11]} 21. Bc3 {[%emt 0:03:24]} Qc7 {[%emt 0:01:48]} 22. Bd2 {[%emt 0:00:14]} Bg7 {[%emt 0:05:42]} 23. Qb3 {[%emt 0:06:51]} Nh5 {[%emt 0:04:33]} 24. Bb4 {[%emt 0:01:29]} Rfe8 {[%emt 0:01:50]} 25. d5 {[%emt 0:03:17]} b6 {[%emt 0:02:38]} 26. Qa3 {[%emt 0:03:13]} Rbd8 {[%emt 0:00:38]} 27. a5 {[%emt 0:02:53]} Rd7 {[%emt 0:01:35]} 28. axb6 {[%emt 0:00:46]} Qxb6 {[%emt 0:00:05]} 29. c5 {[%emt 0:00:17]} dxc5 {[%emt 0:00:26]} 30. Bxc5 {[%emt 0:00:11]} Qb5 {[%emt 0:01:38]} 31. Bf1 {[%emt 0:01:11]} Qb8 {[%emt 0:00:51]} 32. Rb1 {[%emt 0:01:26]} Qe5 {[%emt 0:00:40]} 33. d6 {[%emt 0:02:02]} Rc8 {[%emt 0:00:30]} 34. Rbc1 {[%emt 0:00:31]} Qb2 {[%emt 0:00:48]} 35. Bxa6 Ra8 {[%emt 0:00:30]} 36. Qxb2 {[%emt 0:02:47]} Bxb2 {[%emt 0:00:01]} 37. Bb5 {[%emt 0:00:43]} Rdd8 {[%emt 0:00:59]} 38. Rb1 {[%emt 0:00:36]} Rxa2 {[%emt 0:00:30]} 39. Bc4 {[%emt 0:00:09]} Ra4 {[%emt 0:00:32]} 40. Bb3 {[%emt 0:00:29]} Ra5 {[%emt 0:00:27]} 41. Bb6 {[%emt 0:00:12]} Rb5 {[%emt 0:00:32]} 42. Bxd8 {[%emt 0:00:06]} Rxb3 {[%emt 0:00:04]} 43. Be7 {[%emt 0:01:08]} Rb8 {[%emt 0:00:53]} 44. d7 {[%emt 0:00:07]} 1-0

[Event "FRA-ch Youth U18 2018"]
[Site "Agen"]
[Date "2018.04.19"]
[Round "6"]
[White "Salvador, Lucie"]
[Black "Milroy, Melena"]
[Result "1-0"]
[ECO "A96"]
[WhiteElo "1955"]
[BlackElo "1718"]
[Annotator "NA"]
[PlyCount "83"]
[EventDate "2018.??.??"]
[EventType "swiss"]
[EventCountry "FRA"]
[SourceTitle "playchess.com"]
[Source "ChessBase"]
[SourceQuality "1"]
[TimeControl "5400+30"]

1. d4 {[%emt 0:00:00]} f5 {[%emt 0:00:46]} 2. g3 {[%emt 0:00:27]} Nf6 {[%emt 0:00:32]} 3. Bg2 {[%emt 0:00:50]} e6 {[%emt 0:00:25]} 4. Nf3 {[%emt 0:02:12]} Be7 {[%emt 0:00:08]} 5. O-O {[%emt 0:00:28]} O-O {[%emt 0:00:03]} 6. c4 {[%emt 0:06:23]} d6 {[%emt 0:00:16]} 7. e3 {[%emt 0:07:51]} Nbd7 {[%emt 0:00:32]} 8. Nc3 {[%emt 0:03:43]} Ne4 {[%emt 0:00:24]} 9. Qc2 {[%emt 0:05:57]} Nxc3 {[%emt 0:00:15]} 10. bxc3 {[%emt 0:02:35]} Nf6 {[%emt 0:00:29]} 11. Rb1 {[%emt 0:03:18]} Qe8 $11 {[%emt 0:01:18]} 12. Ba3 {[%emt 0:11:55]} Qh5 {[%emt 0:17:38]} 13. d5 {[%emt 0:05:46]} e5 {[%emt 0:03:25]} 14. Nxe5 {[%emt 0:09:58]} f4 {[%emt 0:05:02]} 15. exf4 {[%emt 0:08:31]} dxe5 {[%emt 0:08:56]} 16. Bxe7 {[%emt 0:00:30]} Bf5 {[%emt 0:00:22]} 17. Qd1 {[%emt 0:03:37]} Bxb1 {[%emt 0:07:50]} 18. Qxb1 {[%emt 0:04:15]} exf4 {[%emt 0:18:08]} 19. Bxf8 {[%emt 0:06:30]} Rxf8 {[%emt 0:00:09]} 20. f3 {[%emt 0:00:45]} fxg3 {[%emt 0:04:49]} 21. hxg3 {[%emt 0:00:02]} Qe5 {[%emt 0:00:26]} 22. Qe1 {[%emt 0:00:27]} Qg5 {[%emt 0:01:52]} 23. Bh3 {[%emt 0:05:37]} Re8 {[%emt 0:04:34]} 24. Be6+ {[%emt 0:02:06]} Kh8 {[%emt 0:00:11]} 25. f4 {[%emt 0:00:40]} Qg6 {[%emt 0:00:37]} 26. Rf3 {[%emt 0:01:01]} Qc2 {[%emt 0:05:10]} 27. Qf2 {[%emt 0:02:56]} Qc1+ {[%emt 0:00:10]} 28. Kg2 {[%emt 0:00:21]} Qa3 {[%emt 0:00:18]} 29. Qc2 {[%emt 0:01:52]} Qd6 {[%emt 0:01:53]} 30. g4 {[%emt 0:02:02]} c6 {[%emt 0:08:29]} 31. Qf5 {[%emt 0:01:01]} Rf8 {[%emt 0:02:54]} 32. Qe5 {[%emt 0:01:07]} Qa3 {[%emt 0:03:49]} 33. Rf2 {[%emt 0:00:06]} cxd5 {[%emt 0:01:24]} 34. cxd5 {[%emt 0:00:11]} Re8 {[%emt 0:01:14]} 35. Qd4 {[%emt 0:01:49]} Qa5 {[%emt 0:02:56]} 36. g5 {[%emt 0:00:31]} Ng8 {[%emt 0:00:26]} 37. f5 {[%emt 0:00:28]} Qd8 {[%emt 0:00:16]} 38. f6 {[%emt 0:00:25]} Qc7 {[%emt 0:00:53]} 39. f7 {[%emt 0:00:35]} Rf8 {[%emt 0:00:30]} 40. fxg8=Q+ {[%emt 0:00:10]} Rxg8 {[%emt 0:00:05]} 41. Bxg8 {[%emt 0:00:12]} Kxg8 {[%emt 0:00:05]} 42. Qf4 {[%emt 0:00:16]} 1-0

[Event "FRA-ch Youth U18 2018"]
[Site "Agen"]
[Date "2018.04.19"]
[Round "6"]
[White "Bauer, Elise"]
[Black "El Barbry, Sarah"]
[Result "1-0"]
[ECO "A45"]
[WhiteElo "1489"]
[BlackElo "1750"]
[Annotator "NA"]
[PlyCount "93"]
[EventDate "2018.??.??"]
[EventType "swiss"]
[EventCountry "FRA"]
[SourceTitle "playchess.com"]
[Source "ChessBase"]
[SourceQuality "1"]
[TimeControl "5400+30"]

1. d4 {[%emt 0:00:00]} Nf6 {[%emt 0:06:44]} 2. Bf4 {[%emt 0:00:00]} e6 {[%emt 0:00:06]} 3. Nf3 {[%emt 0:00:00]} d5 {[%emt 0:00:03]} 4. e3 {[%emt 0:00:08]} c5 {[%emt 0:00:03]} 5. c3 {[%emt 0:04:12]} Nc6 {[%emt 0:03:29]} 6. Nbd2 {[%emt 0:00:11]} Bd6 {[%emt 0:00:02]} 7. Bg3 {[%emt 0:00:20]} O-O {[%emt 0:00:07]} 8. Bd3 {[%emt 0:01:21]} b6 {[%emt 0:00:04]} 9. O-O {[%emt 0:00:39]} Bxg3 {[%emt 0:00:41]} 10. hxg3 {[%emt 0:00:18]} Qc7 {[%emt 0:00:34]} 11. Qc2 {[%emt 0:02:35]} c4 {[%emt 0:00:37]} 12. Be2 {[%emt 0:00:43]} Bb7 {[%emt 0:00:37]} 13. e4 {[%emt 0:03:15]} dxe4 {[%emt 0:06:30]} 14. Nxe4 {[%emt 0:01:54]} Nxe4 {[%emt 0:00:05]} 15. Qxe4 {[%emt 0:00:51]} Ne7 {[%emt 0:01:10]} 16. Qc2 {[%emt 0:03:25]} Qc6 {[%emt 0:12:15]} 17. Rfe1 {[%emt 0:04:32]} b5 {[%emt 0:05:32]} 18. Bf1 {[%emt 0:03:17]} a5 {[%emt 0:01:53]} 19. a4 {[%emt 0:01:46]} Rfc8 {[%emt 0:05:42]} 20. Ne5 {[%emt 0:04:44]} Qd5 {[%emt 0:04:09]} 21. axb5 {[%emt 0:02:19]} f6 {[%emt 0:01:39]} 22. Nf3 {[%emt 0:03:03]} Nf5 {[%emt 0:00:45]} 23. Qe2 {[%emt 0:02:26]} Kf7 {[%emt 0:01:21]} 24. Nd2 {[%emt 0:07:33]} Nd6 {[%emt 0:03:32]} 25. Ra4 {[%emt 0:03:16]} Rcb8 {[%emt 0:27:26]} 26. Nxc4 {[%emt 0:04:14]} Bc8 {[%emt 0:00:48]} 27. Rxa5 {[%emt 0:15:41]} Rxa5 {[%emt 0:08:15]} 28. Nxa5 {[%emt 0:01:20]} Nxb5 {[%emt 0:02:35]} 29. Nc4 {[%emt 0:11:16]} Ba6 {[%emt 0:00:55]} 30. Ne3 {[%emt 0:01:55]} Qb3 {[%emt 0:03:05]} 31. Nd1 {[%emt 0:02:03]} Rb6 {[%emt 0:00:55]} 32. Qh5+ {[%emt 0:01:56]} Kf8 {[%emt 0:01:14]} 33. Qxh7 Bb7 34. Qh8+ Kf7 35. Qh5+ {[%emt 0:04:06]} Kf8 {[%emt 0:00:02]} 36. Qc5+ {[%emt 0:01:39]} Nd6 {[%emt 0:00:20]} 37. Bc4 {[%emt 0:01:34]} Qxc4 {[%emt 0:02:29]} 38. Qxb6 {[%emt 0:00:15]} Ke7 {[%emt 0:00:27]} 39. Qc5 {[%emt 0:02:30]} Qxc5 {[%emt 0:01:37]} 40. dxc5 Ne4 41. b4 {[%emt 0:00:27]} Bd5 {[%emt 0:00:06]} 42. Re3 {[%emt 0:01:43]} Nd2 {[%emt 0:00:29]} 43. Nb2 {[%emt 0:00:43]} Kd7 {[%emt 0:00:35]} 44. Rd3 {[%emt 0:01:06]} Nb3 {[%emt 0:01:09]} 45. c4 {[%emt 0:00:34]} Nc1 {[%emt 0:00:10]} 46. cxd5 {[%emt 0:00:43]} Nxd3 {[%emt 0:00:22]} 47. dxe6+ {[%emt 0:00:09]} 1-0

[Event "FRA-ch Youth U18 2018"]
[Site "Agen"]
[Date "2018.04.19"]
[Round "6"]
[White "Breysse, Astrid"]
[Black "Belluire, Beatrice"]
[Result "0-1"]
[ECO "C02"]
[WhiteElo "1409"]
[BlackElo "1818"]
[Annotator "NA"]
[PlyCount "106"]
[EventDate "2018.??.??"]
[EventType "swiss"]
[EventCountry "FRA"]
[SourceTitle "playchess.com"]
[Source "ChessBase"]
[SourceQuality "1"]
[TimeControl "5400+30"]

1. e4 {[%emt 0:00:00]} e6 {[%emt 0:00:11]} 2. d4 {[%emt 0:00:29]} d5 {[%emt 0:00:09]} 3. e5 {[%emt 0:00:39]} c5 {[%emt 0:00:12]} 4. c3 {[%emt 0:01:00]} Nc6 {[%emt 0:00:14]} 5. Nf3 {[%emt 0:01:22]} Nge7 {[%emt 0:00:22]} 6. Be2 {[%emt 0:02:39]} Nf5 {[%emt 0:00:40]} 7. a3 {[%emt 0:01:37]} cxd4 {[%emt 0:00:50]} 8. cxd4 {[%emt 0:00:13]} Qb6 {[%emt 0:00:27]} 9. b4 {[%emt 0:01:05]} Nfxd4 {[%emt 0:01:44]} 10. Be3 {[%emt 0:08:05]} Nxf3+ {[%emt 0:00:11]} 11. Bxf3 {[%emt 0:00:03]} Qc7 {[%emt 0:00:54]} 12. Bf4 {[%emt 0:04:31]} Nxe5 {[%emt 0:04:58]} 13. O-O {[%emt 0:08:57]} Nxf3+ {[%emt 0:00:59]} 14. Qxf3 {[%emt 0:00:05]} Bd6 {[%emt 0:01:56]} 15. Rc1 {[%emt 0:03:11]} Qe7 {[%emt 0:02:20]} 16. Be3 {[%emt 0:05:54]} Qf6 {[%emt 0:01:08]} 17. Qxf6 {[%emt 0:23:24]} gxf6 {[%emt 0:00:01]} 18. Nc3 {[%emt 0:00:09]} Bd7 {[%emt 0:01:48]} 19. Re1 {[%emt 0:00:44]} O-O {[%emt 0:04:40]} 20. Rad1 {[%emt 0:02:41]} Rfd8 {[%emt 0:00:52]} 21. Bh6 {[%emt 0:02:44]} Bf8 {[%emt 0:00:18]} 22. Bf4 {[%emt 0:01:24]} Rac8 {[%emt 0:00:58]} 23. Ne2 {[%emt 0:03:30]} Rc2 {[%emt 0:03:44]} 24. Rd3 {[%emt 0:03:59]} Rdc8 {[%emt 0:01:18]} 25. Bd2 {[%emt 0:02:50]} Bb5 {[%emt 0:01:22]} 26. Rg3+ {[%emt 0:03:19]} Kh8 {[%emt 0:00:09]} 27. Bc3 {[%emt 0:00:35]} Bg7 {[%emt 0:01:17]} 28. Nd4 {[%emt 0:03:04]} R2xc3 {[%emt 0:02:41]} 29. Nxb5 {[%emt 0:01:33]} Rxg3 {[%emt 0:00:26]} 30. hxg3 {[%emt 0:00:02]} a6 {[%emt 0:00:57]} 31. Nd6 {[%emt 0:01:14]} Rc7 {[%emt 0:01:44]} 32. Kf1 {[%emt 0:00:15]} Kg8 {[%emt 0:01:30]} 33. Ne8 {[%emt 0:01:39]} Rc2 {[%emt 0:00:13]} 34. Nxg7 {[%emt 0:01:42]} Kxg7 {[%emt 0:00:02]} 35. Re2 {[%emt 0:00:04]} Rc1+ {[%emt 0:00:18]} 36. Re1 {[%emt 0:00:09]} Rxe1+ {[%emt 0:00:20]} 37. Kxe1 {[%emt 0:00:03]} Kg6 {[%emt 0:00:14]} 38. Ke2 {[%emt 0:00:10]} Kf5 {[%emt 0:00:05]} 39. Kd3 {[%emt 0:01:54]} e5 {[%emt 0:01:41]} 40. Ke3 {[%emt 0:00:14]} Ke6 {[%emt 0:00:20]} 41. g4 {[%emt 0:01:04]} f5 {[%emt 0:00:33]} 42. gxf5+ {[%emt 0:02:46]} Kxf5 {[%emt 0:00:01]} 43. Kd3 {[%emt 0:00:11]} Kf4 {[%emt 0:00:36]} 44. Kd2 {[%emt 0:01:05]} h5 {[%emt 0:00:36]} 45. Ke2 {[%emt 0:00:41]} h4 {[%emt 0:00:24]} 46. Kd1 {[%emt 0:00:29]} Ke4 {[%emt 0:00:21]} 47. Ke2 {[%emt 0:00:22]} Kd4 {[%emt 0:00:06]} 48. Kd2 {[%emt 0:00:28]} Kc4 {[%emt 0:00:46]} 49. Kc2 {[%emt 0:00:09]} e4 {[%emt 0:00:12]} 50. Kd2 {[%emt 0:04:49]} d4 {[%emt 0:00:36]} 51. Kc2 {[%emt 0:00:52]} d3+ {[%emt 0:00:20]} 52. Kd2 {[%emt 0:00:06]} Kb3 {[%emt 0:00:57]} 53. f4 {[%emt 0:01:58]} exf3 {[%emt 0:00:39]} 0-1

[Event "FRA-ch Youth U18 2018"]
[Site "Agen"]
[Date "2018.04.20"]
[Round "7"]
[White "O'Sullivan, Thomas"]
[Black "Heliot, Xabi"]
[Result "1-0"]
[ECO "E32"]
[WhiteElo "2291"]
[BlackElo "2160"]
[Annotator "NA"]
[PlyCount "77"]
[EventDate "2018.??.??"]
[EventType "swiss"]
[EventCountry "FRA"]
[SourceTitle "playchess.com"]
[Source "ChessBase"]
[SourceQuality "1"]
[TimeControl "5400+30"]

1. d4 {[%emt 0:00:00]} Nf6 {[%emt 0:00:13]} 2. c4 {[%emt 0:00:00]} e6 {[%emt 0:00:05]} 3. Nc3 {[%emt 0:00:00]} Bb4 {[%emt 0:00:04]} 4. Qc2 {[%emt 0:00:00]} O-O {[%emt 0:00:05]} 5. Nf3 {[%emt 0:00:00]} c5 {[%emt 0:00:04]} 6. dxc5 {[%emt 0:00:12]} Na6 {[%emt 0:00:06]} 7. g3 {[%emt 0:00:05]} Nxc5 {[%emt 0:00:35]} 8. Bg2 {[%emt 0:00:07]} b6 {[%emt 0:06:49]} 9. O-O {[%emt 0:00:11] E39: Nimzo-Indian: Classical: 4...c5 5 dxc5 0-0} Bb7 {[%emt 0:00:05]} 10. Nb5 {[%emt 0:00:13]} Be4 {[%emt 0:12:56]} (10... Nce4 11. Ng5 d5 12. Rd1 Qc8 13. Nxe4 Nxe4 14. Bxe4 dxe4 15. Bf4 Bc6 16. Bd6 Bxb5 17. Bxb4 {½-½ (30) Lenderman,A (2611)-Yu,Y (2760) chess.com INT 2018}) 11. Qd1 {[%emt 0:00:39]} Nb7 {[%emt 0:00:10]} 12. Bf4 {[%emt 0:05:34]} a6 {[%emt 0:17:20]} 13. Nd6 {[%emt 0:11:37]} Nxd6 {[%emt 0:00:40] LiveBook: 11 Games} 14. Bxd6 {[%emt 0:02:54]} Bxd6 {[%emt 0:00:04]} 15. Qxd6 {[%emt 0:00:14]} Qb8 {[%emt 0:15:22] [#]} 16. Rfd1 $146 {[%emt 0:03:20]} Qb7 {[%emt 0:00:20]} 17. Ne1 {[%emt 0:01:54]} Rfc8 {[%emt 0:03:30]} 18. f3 {[%emt 0:09:28]} Bc6 {[%emt 0:00:06]} 19. Nd3 {[%emt 0:03:07]} Qa7 {[%emt 0:06:40]} 20. Ne5 {[%emt 0:16:47]} b5+ {[%emt 0:09:38]} 21. c5 {[%emt 0:02:49]} b4 {[%emt 0:00:45]} 22. Rac1 {[%emt 0:08:15]} Bb5 {[%emt 0:02:00]} 23. f4 {[%emt 0:02:36]} Ne8 {[%emt 0:06:28]} 24. Qe7 {[%emt 0:09:37]} d5 {[%emt 0:00:05]} 25. Qxa7 {[%emt 0:00:28]} Rxa7 {[%emt 0:00:03]} 26. e4 dxe4 {[%emt 0:01:59]} 27. Bxe4 {[%emt 0:01:51]} Rac7 {[%emt 0:03:27]} 28. c6 {[%emt 0:01:30]} f6 {[%emt 0:00:24]} 29. Nd7 {[%emt 0:02:31]} Bxc6 $2 {[%emt 0:03:12]} (29... f5 $16 {might work better.} 30. Bh1 Nf6) 30. Nb6 {[%emt 0:01:05]} Bxe4 {[%emt 0:01:31]} 31. Nxc8 {[%emt 0:00:07]} Bd5 {[%emt 0:00:31]} 32. Rxc7 {[%emt 0:05:56]} Nxc7 {[%emt 0:00:00]} 33. Rc1 {[%emt 0:00:27]} Nb5 {[%emt 0:00:44]} 34. Ne7+ {[%emt 0:00:10]} Kf7 {[%emt 0:00:04]} 35. Nxd5 {[%emt 0:00:07]} exd5 {[%emt 0:00:02]} 36. Rc6 {[%emt 0:00:13]} a5 {[%emt 0:06:05]} 37. Rc5 {[%emt 0:00:51]} Nd6 {[%emt 0:01:17]} 38. Rxd5 {[%emt 0:00:18]} Nc4 $18 {[%emt 0:00:28]} 39. b3 {[%emt 0:00:15]} 1-0

[Event "FRA-ch Youth U18 2018"]
[Site "Agen"]
[Date "2018.04.20"]
[Round "7"]
[White "Belluire, Beatrice"]
[Black "Chachiachvili, Mariam"]
[Result "1-0"]
[ECO "C52"]
[WhiteElo "1818"]
[BlackElo "1752"]
[Annotator "NA"]
[PlyCount "83"]
[EventDate "2018.??.??"]
[EventType "swiss"]
[EventCountry "FRA"]
[SourceTitle "playchess.com"]
[Source "ChessBase"]
[SourceQuality "1"]
[TimeControl "5400+30"]

1. e4 {[%emt 0:00:00]} e5 {[%emt 0:00:14]} 2. Nf3 {[%emt 0:00:00]} Nc6 {[%emt 0:00:18]} 3. Bc4 {[%emt 0:00:00]} Bc5 {[%emt 0:00:11]} 4. b4 {[%emt 0:00:11]} Bxb4 {[%emt 0:02:45]} 5. c3 {[%emt 0:00:01]} Ba5 {[%emt 0:06:50]} 6. d4 {[%emt 0:00:06]} exd4 {[%emt 0:07:33]} 7. Qb3 {[%emt 0:00:05]} Qe7 {[%emt 0:08:04]} 8. O-O {[%emt 0:00:06]} Bb6 {[%emt 0:12:05]} 9. cxd4 {[%emt 0:00:07]} Nxd4 {[%emt 0:08:29]} 10. Nxd4 {[%emt 0:00:05]} Bxd4 {[%emt 0:00:09]} 11. Nc3 {[%emt 0:00:06]} Nf6 {[%emt 0:10:27]} 12. Ba3 {[%emt 0:00:26]} c5 {[%emt 0:14:09]} 13. Rad1 {[%emt 0:16:01]} d6 {[%emt 0:01:19]} 14. Nb5 {[%emt 0:01:07]} O-O {[%emt 0:07:39]} 15. Nxd4 {[%emt 0:01:34]} cxd4 {[%emt 0:00:04]} 16. Rxd4 {[%emt 0:00:14]} Rd8 {[%emt 0:00:57]} 17. Rfd1 {[%emt 0:06:22]} Ne8 {[%emt 0:02:23]} 18. e5 {[%emt 0:10:59]} Qxe5 {[%emt 0:04:08]} 19. Bxf7+ {[%emt 0:00:09]} Kh8 {[%emt 0:00:16]} 20. Bb2 {[%emt 0:20:41]} Qe7 {[%emt 0:02:52]} 21. R4d3 {[%emt 0:01:32]} Nf6 {[%emt 0:04:11]} 22. Re3 {[%emt 0:00:56]} Qf8 {[%emt 0:02:31]} 23. Rde1 {[%emt 0:07:46]} Bd7 {[%emt 0:01:14]} 24. Rg3 {[%emt 0:01:46]} Ba4 {[%emt 0:02:15]} 25. Qxa4 {[%emt 0:16:15]} Qxf7 {[%emt 0:00:02]} 26. Rge3 {[%emt 0:04:25]} b6 {[%emt 0:01:52]} 27. Re7 {[%emt 0:02:12]} Qd5 {[%emt 0:00:29]} 28. Bxf6 {[%emt 0:05:04]} gxf6 {[%emt 0:00:02]} 29. Qh4 {[%emt 0:01:35]} Qf5 {[%emt 0:00:58]} 30. h3 {[%emt 0:01:52]} Rg8 {[%emt 0:00:30]} 31. R1e3 {[%emt 0:01:48]} Rg7 {[%emt 0:00:32]} 32. Rxg7 {[%emt 0:01:42]} Kxg7 {[%emt 0:00:01]} 33. Rf3 {[%emt 0:00:29]} Qb1+ {[%emt 0:00:48]} 34. Kh2 {[%emt 0:00:01]} Rf8 {[%emt 0:00:26]} 35. Rg3+ {[%emt 0:00:29]} Kf7 {[%emt 0:00:01]} 36. Qc4+ {[%emt 0:00:13]} Ke8 {[%emt 0:01:09]} 37. Re3+ {[%emt 0:01:29]} Kd8 {[%emt 0:00:36]} 38. Qe6 {[%emt 0:00:19]} Rh8 {[%emt 0:00:29]} 39. Qxf6+ {[%emt 0:00:17]} Kc7 {[%emt 0:00:11]} 40. Qxh8 {[%emt 0:00:11]} Qxa2 {[%emt 0:00:25]} 41. Rc3+ {[%emt 0:00:24]} Kb7 {[%emt 0:00:00]} 42. Qc8# {[%emt 0:00:11]} 1-0

[Event "FRA-ch Youth U18 2018"]
[Site "Agen"]
[Date "2018.04.20"]
[Round "7"]
[White "El Barbry, Sarah"]
[Black "Pigeat, Typhaine"]
[Result "1-0"]
[ECO "B21"]
[WhiteElo "1750"]
[BlackElo "1733"]
[Annotator "NA"]
[PlyCount "77"]
[EventDate "2018.??.??"]
[EventType "swiss"]
[EventCountry "FRA"]
[SourceTitle "playchess.com"]
[Source "ChessBase"]
[SourceQuality "1"]
[TimeControl "5400+30"]

1. e4 {[%emt 0:04:54]} c5 {[%emt 0:00:19]} 2. d4 {[%emt 0:00:04]} cxd4 {[%emt 0:00:54]} 3. c3 {[%emt 0:00:03]} d3 {[%emt 0:05:54]} 4. c4 {[%emt 0:00:04]} e6 {[%emt 0:01:29]} 5. Bxd3 {[%emt 0:00:06]} Nc6 {[%emt 0:01:17]} 6. Nf3 {[%emt 0:01:00]} h6 {[%emt 0:01:52]} 7. O-O {[%emt 0:00:21]} b6 {[%emt 0:00:29]} 8. Nc3 {[%emt 0:02:43]} Bd6 {[%emt 0:05:54]} 9. Nb5 {[%emt 0:02:10]} Bb8 {[%emt 0:04:49]} 10. Bb1 {[%emt 0:02:15]} Ba6 {[%emt 0:09:53]} 11. Re1 {[%emt 0:06:51]} Nge7 {[%emt 0:05:41]} 12. b3 {[%emt 0:02:17]} O-O {[%emt 0:04:22]} 13. Bb2 {[%emt 0:11:25]} Ng6 {[%emt 0:02:20]} 14. e5 {[%emt 0:09:15]} Bb7 {[%emt 0:09:01]} 15. Nd6 {[%emt 0:05:51]} Bxd6 16. exd6 Rc8 {[%emt 0:04:30]} 17. Qd3 {[%emt 0:02:40]} Nb4 {[%emt 0:05:05]} 18. Qc3 {[%emt 0:00:27]} Qf6 {[%emt 0:03:32]} 19. Qd2 {[%emt 0:03:36]} Qf4 {[%emt 0:07:08]} 20. Qxb4 {[%emt 0:01:03]} Bxf3 {[%emt 0:03:01]} 21. Qc3 {[%emt 0:04:11]} Qf6 {[%emt 0:02:44]} 22. Qxf6 {[%emt 0:00:02]} gxf6 {[%emt 0:00:27]} 23. gxf3 {[%emt 0:00:03]} Nh4 {[%emt 0:06:32]} 24. Re4 {[%emt 0:03:01]} Nxf3+ {[%emt 0:01:17]} 25. Kg2 {[%emt 0:00:05]} f5 {[%emt 0:00:56]} 26. Rf4 {[%emt 0:05:54]} Ng5 {[%emt 0:01:04]} 27. h4 {[%emt 0:07:12]} Nh7 {[%emt 0:01:34]} 28. Kh2 {[%emt 0:00:52]} f6 {[%emt 0:00:21]} 29. Bd3 {[%emt 0:00:52]} Kf7 {[%emt 0:00:18]} 30. Be2 {[%emt 0:00:25]} Rg8 {[%emt 0:00:41]} 31. Bh5+ {[%emt 0:00:59]} Kf8 {[%emt 0:00:14]} 32. Rf3 {[%emt 0:05:53]} Rc5 {[%emt 0:03:21]} 33. Rg1 {[%emt 0:00:35]} Rg7 {[%emt 0:02:58]} 34. Rxg7 {[%emt 0:00:30]} Kxg7 {[%emt 0:00:09]} 35. Rg3+ {[%emt 0:00:29]} Kf8 {[%emt 0:02:36]} 36. Bg6 {[%emt 0:00:24]} f4 {[%emt 0:00:50]} 37. Rg1 {[%emt 0:00:23]} Kg7 {[%emt 0:00:25]} 38. Bxh7+ {[%emt 0:02:17]} Kxh7 {[%emt 0:00:13]} 39. Bxf6 1-0